fUSD/lending_fUSD_20250504
["ID","MTS","AMOUNT","RATE_DAILY","PERIOD"]
[359821571,1746359456357,-450.0,0.0001978,2]
[359821573,1746359456369,-450.0,0.0001978,2]
[359821575,1746359456380,-450.0,0.0001978,2]
[359821577,1746359456390,-481.13778708,0.0001978,2]
[359821579,1746359456400,-450.0,0.0001978,2]
[359821581,1746359456409,-450.0,0.0001978,2]
[359821583,1746359456422,-459.74803943,0.0001978,2]
[359821585,1746359456432,-450.0,0.0001978,2]
[359821588,1746359456443,-450.0,0.0001978,2]
[359821590,1746359456454,-450.0,0.0001978,2]
[359821592,1746359456465,-450.0,0.0001978,2]
[359821594,1746359456476,-450.0,0.0001978,2]
[359821596,1746359456487,-450.0,0.0001978,2]
[359821598,1746359456497,-450.0,0.0001978,2]
[359821600,1746359456507,-450.0,0.0001978,2]
[359821602,1746359456517,-450.0,0.0001978,2]
[359821604,1746359456527,-450.0,0.0001978,2]
[359821606,1746359456538,-450.0,0.0001978,2]
[359821608,1746359456549,-450.0,0.0001978,2]
[359821610,1746359456558,-450.0,0.0001978,2]
[359821612,1746359456568,-450.0,0.0001978,2]
[359821614,1746359456578,-450.0,0.0001978,2]
[359821616,1746359456588,-450.0,0.0001978,2]
[359821618,1746359456597,-450.0,0.0001978,2]
[359821620,1746359456607,-450.0,0.0001978,2]
[359821622,1746359456617,-450.0,0.0001978,2]
[359821623,1746359456626,-450.0,0.0001978,2]
[359821626,1746359456637,-461.16882008,0.0001978,2]
[359821627,1746359456647,-450.0,0.0001978,2]
[359821629,1746359456657,-450.0,0.0001978,2]
[359821631,1746359456666,-1239.1,0.0001978,2]
[359821633,1746359456676,-450.0,0.0001978,2]
[359821635,1746359456686,-459.0295421,0.0001978,2]
[359821637,1746359456696,-450.0,0.0001978,2]
[359821639,1746359456706,-624.17,0.0001978,2]
[359821641,1746359456716,-450.0,0.0001978,2]
[359821643,1746359456726,-795.62,0.0001978,2]
[359821645,1746359456737,-552.74,0.0001978,2]
[359821647,1746359456747,-1221.77,0.0001978,2]
[359821649,1746359456758,-450.0,0.0001978,2]
[359821651,1746359456768,-450.0,0.0001978,2]
[359821653,1746359456779,-450.0,0.0001978,2]
[359821655,1746359456789,-450.0,0.0001978,2]
[359821657,1746359456799,-450.0,0.0001978,2]
[359821676,1746359456967,-334.77542731,0.0001978,2]
[359821678,1746359456976,-593.19261331,0.0001978,2]
[359821680,1746359456986,-587.51917562,0.0001978,2]
[359821682,1746359456996,-450.0,0.0001978,2]
[359821684,1746359457005,-450.0,0.0001978,2]
[359821686,1746359457015,-450.0,0.0001978,2]
[359821688,1746359457024,-450.0,0.0001978,2]
[359821690,1746359457033,-583.24,0.0001978,2]
[359821692,1746359457043,-450.0,0.0001978,2]
[359821694,1746359457053,-450.62876082,0.0001978,2]
[359821696,1746359457062,-450.0,0.0001978,2]
[359821698,1746359457071,-450.0,0.0001978,2]
[359821700,1746359457081,-450.0,0.0001978,2]
[359821702,1746359457091,-460.97,0.0001978,2]
[359821704,1746359457101,-178.97,0.0001978,2]
[359821706,1746359457110,-3138.38,0.0001978,2]
[359821708,1746359457120,-363.09,0.0001978,2]
[359821710,1746359457130,-450.0,0.0001978,2]
[359821712,1746359457139,-450.0,0.0001978,2]
[359821714,1746359457149,-450.0,0.0001978,2]
[359821716,1746359457159,-532.34,0.0001978,2]
[359821718,1746359457169,-450.0,0.0001978,2]
[359821720,1746359457179,-503.9416051,0.0001978,2]
[359821722,1746359457189,-450.0,0.0001978,2]
[359821724,1746359457200,-450.0,0.0001978,2]
[359821726,1746359457210,-450.0,0.0001978,2]
[359821728,1746359457220,-450.0,0.0001978,2]
[359821730,1746359457231,-450.0,0.0001978,2]
[359821732,1746359457240,-641.964982,0.0001978,2]
[359821734,1746359457250,-450.0,0.0001978,2]
[359821736,1746359457259,-479.91,0.0001978,2]
[359821738,1746359457269,-1070.11,0.0001978,2]
[359821740,1746359457279,-450.0,0.0001978,2]
[359821742,1746359457288,-348.49260168,0.0001978,2]
[359821744,1746359457298,-450.0,0.0001978,2]
[359821746,1746359457307,-527.37,0.0001978,2]
[359821748,1746359457318,-450.0,0.0001978,2]
[359821750,1746359457327,-450.0,0.0001978,2]
[359821752,1746359457337,-450.0,0.0001978,2]
[359821754,1746359457347,-450.0,0.0001978,2]
[359821756,1746359457357,-450.0,0.0001978,2]
[359821759,1746359457371,-450.0,0.0001978,2]
[359821760,1746359457380,-450.0,0.0001978,2]
[359821762,1746359457390,-450.0,0.0001978,2]
[359821764,1746359457399,-450.0,0.0001978,2]
[359821767,1746359457410,-450.0,0.0001978,2]
[359821769,1746359457420,-450.0,0.0001978,2]
[359821771,1746359457430,-450.0,0.0001978,2]
[359821773,1746359457441,-450.0,0.0001978,2]
[359821774,1746359457451,-450.0,0.0001978,2]
[359821776,1746359457461,-515.10449802,0.0001978,2]
[359821778,1746359457471,-1073.06,0.0001978,2]
[359821780,1746359457481,-450.0,0.0001978,2]
[359821782,1746359457491,-830.705195,0.0001978,2]
[359821784,1746359457501,-450.0,0.0001978,2]
[359821786,1746359457512,-450.0,0.0001978,2]
[359821788,1746359457522,-450.0,0.0001978,2]
[359821790,1746359457533,-450.0,0.0001978,2]
[359821792,1746359457543,-450.0,0.0001978,2]
[359821794,1746359457553,-450.0,0.0001978,2]
[359821796,1746359457563,-333.741161,0.0001978,2]
[359821798,1746359457572,-450.0,0.0001978,2]
[359821800,1746359457584,-857.72,0.0001978,2]
[359821803,1746359457595,-450.0,0.0001978,2]
[359821804,1746359457605,-450.0,0.0001978,2]
[359821805,1746359457615,-450.0,0.0001978,2]
[359821806,1746359457625,-465.66,0.0001978,2]
[359821807,1746359457635,-450.0,0.0001978,2]
[359821808,1746359457647,-2941.44,0.0001978,2]
[359821809,1746359457657,-490.14975957,0.0001978,2]
[359821810,1746359457667,-450.0,0.0001978,2]
[359821811,1746359457677,-450.0,0.0001978,2]
[359821812,1746359457686,-450.0,0.0001978,2]
[359821814,1746359457696,-1162.75,0.0001978,2]
[359821816,1746359457706,-450.0,0.0001978,2]
[359821818,1746359457716,-450.0,0.0001978,2]
[359821820,1746359457725,-450.0,0.0001978,2]
[359821822,1746359457735,-562.76,0.0001978,2]
[359821824,1746359457744,-450.0,0.0001978,2]
[359821826,1746359457754,-1159.98,0.0001978,2]
[359821828,1746359457764,-450.0,0.0001978,2]
[359821830,1746359457774,-450.0,0.0001978,2]
[359821832,1746359457784,-450.0,0.0001978,2]
[359821834,1746359457793,-450.0,0.0001978,2]
[359821836,1746359457802,-450.0,0.0001978,2]
[359821838,1746359457812,-450.0,0.0001978,2]
[359821840,1746359457822,-450.0,0.0001978,2]
[359821842,1746359457831,-450.0,0.0001978,2]
[359821844,1746359457841,-468.60183099,0.0001978,2]
[359821846,1746359457851,-450.0,0.0001978,2]
[359821848,1746359457860,-450.0,0.0001978,2]
[359821850,1746359457870,-450.0,0.0001978,2]
[359821852,1746359457881,-450.0,0.0001978,2]
[359821854,1746359457890,-450.0,0.0001978,2]
[359821856,1746359457900,-450.0,0.0001978,2]
[359821858,1746359457910,-450.0,0.0001978,2]
[359821860,1746359457920,-765.13,0.0001978,2]
[359821862,1746359457930,-450.0,0.0001978,2]
[359821864,1746359457939,-218.98,0.0001978,2]
[359821866,1746359457949,-450.0,0.0001978,2]
[359821868,1746359457958,-450.0,0.0001978,2]
[359821870,1746359457968,-450.0,0.0001978,2]
[359821872,1746359457978,-450.0,0.0001978,2]
[359821873,1746359457987,-450.0,0.0001978,2]
[359821875,1746359457997,-450.0,0.0001978,2]
[359821877,1746359458006,-533.18,0.0001978,2]
[359821879,1746359458016,-450.0,0.0001978,2]
[359821881,1746359458025,-212.38074,0.0001978,2]
[359821883,1746359458035,-450.0,0.0001978,2]
[359821885,1746359458044,-450.0,0.0001978,2]
[359821887,1746359458053,-450.0,0.0001978,2]
[359821890,1746359458063,-450.0,0.0001978,2]
[359821892,1746359458073,-450.0,0.0001978,2]
[359821894,1746359458082,-450.0,0.0001978,2]
[359821896,1746359458092,-450.0,0.0001978,2]
[359821898,1746359458101,-450.0,0.0001978,2]
[359821900,1746359458110,-450.0,0.0001978,2]
[359821902,1746359458119,-450.0,0.0001978,2]
[359821904,1746359458129,-450.0,0.0001978,2]
[359821906,1746359458138,-450.0,0.0001978,2]
[359821908,1746359458148,-450.0,0.0001978,2]
[359821910,1746359458157,-3050.62,0.0001978,2]
[359821912,1746359458167,-450.0,0.0001978,2]
[359821914,1746359458176,-450.0,0.0001978,2]
[359821916,1746359458186,-450.0,0.0001978,2]
[359821918,1746359458197,-450.0,0.0001978,2]
[359821920,1746359458206,-683.7,0.0001978,2]
[359821922,1746359458216,-450.0,0.0001978,2]
[359821924,1746359458225,-450.0,0.0001978,2]
[359821926,1746359458236,-450.0,0.0001978,2]
[359821928,1746359458245,-450.0,0.0001978,2]
[359821930,1746359458255,-603.46,0.0001978,2]
[359821932,1746359458264,-450.0,0.0001978,2]
[359821934,1746359458273,-450.0,0.0001978,2]
[359821936,1746359458282,-450.0,0.0001978,2]
[359821938,1746359458292,-450.0,0.0001978,2]
[359821940,1746359458301,-2117.72,0.0001978,2]
[359821942,1746359458311,-450.0,0.0001978,2]
[359821944,1746359458320,-450.0,0.0001978,2]
[359821946,1746359458329,-450.0,0.0001978,2]
[359821948,1746359458338,-271.90358088,0.0001978,2]
[359821950,1746359458348,-450.0,0.0001978,2]
[359821952,1746359458357,-625.72,0.0001978,2]
[359821954,1746359458368,-450.0,0.0001978,2]
[359821956,1746359458378,-1742.76,0.0001978,2]
[359821958,1746359458387,-450.0,0.0001978,2]
[359821959,1746359458397,-450.0,0.0001978,2]
[359821961,1746359458407,-3548.84,0.0001978,2]
[359821963,1746359458417,-450.0,0.0001978,2]
[359821965,1746359458426,-450.0,0.0001978,2]
[359821967,1746359458435,-450.0,0.0001978,2]
[359821969,1746359458445,-450.0,0.0001978,2]
[359821971,1746359458455,-450.0,0.0001978,2]
[359821973,1746359458464,-450.0,0.0001978,2]
[359821975,1746359458474,-450.0,0.0001978,2]
[359821977,1746359458483,-450.0,0.0001978,2]
[359821980,1746359458493,-573.03,0.0001978,2]
[359821982,1746359458503,-450.0,0.0001978,2]
[359821984,1746359458511,-538.0989781,0.0001978,2]
[359821986,1746359458521,-450.0,0.0001978,2]
[359821988,1746359458530,-450.0,0.0001978,2]
[359821990,1746359458540,-588.79,0.0001978,2]
[359821992,1746359458549,-450.0,0.0001978,2]
[359821994,1746359458558,-450.0,0.0001978,2]
[359821996,1746359458567,-597.09,0.0001978,2]
[359821998,1746359458576,-450.0,0.0001978,2]
[359822000,1746359458587,-450.0,0.0001978,2]
[359822002,1746359458596,-450.0,0.0001978,2]
[359822004,1746359458605,-450.0,0.0001978,2]
[359822006,1746359458614,-1790.88,0.0001978,2]
[359822008,1746359458624,-450.0,0.0001978,2]
[359822010,1746359458633,-450.0,0.0001978,2]
[359822012,1746359458642,-573.15,0.0001978,2]
[359822014,1746359458652,-450.0,0.0001978,2]
[359822016,1746359458662,-34498.85,0.0001978,2]
[359822018,1746359458671,-450.0,0.0001978,2]
[359822020,1746359458680,-450.0,0.0001978,2]
[359822022,1746359458690,-841.66,0.0001978,2]
[359822024,1746359458699,-450.0,0.0001978,2]
[359822026,1746359458708,-450.0,0.0001978,2]
[359822028,1746359458717,-450.0,0.0001978,2]
[359822030,1746359458727,-450.0,0.0001978,2]
[359822032,1746359458736,-450.0,0.0001978,2]
[359822034,1746359458745,-450.0,0.0001978,2]
[359822036,1746359458755,-450.0,0.0001978,2]
[359822038,1746359458764,-450.000001,0.0001978,2]
[359822040,1746359458774,-968.24,0.0001978,2]
[359822042,1746359458784,-450.0,0.0001978,2]
[359822044,1746359458794,-1855.43,0.0001978,2]
[359822046,1746359458804,-462.5,0.0001978,2]
[359822048,1746359458813,-450.0,0.0001978,2]
[359822050,1746359458823,-8386.62,0.0001978,2]
[359822052,1746359458832,-450.0,0.0001978,2]
[359822054,1746359458841,-450.0,0.0001978,2]
[359822056,1746359458851,-450.0,0.0001978,2]
[359822058,1746359458860,-163.51251859,0.0001978,2]
[359822060,1746359458869,-700.48,0.0001978,2]
[359822062,1746359458879,-450.0,0.0001978,2]
[359822064,1746359458888,-450.0,0.0001978,2]
[359822066,1746359458897,-550.10842125,0.0001978,2]
[359822068,1746359458907,-450.0,0.0001978,2]
[359822070,1746359458917,-450.0,0.0001978,2]
[359822072,1746359458926,-5710.89,0.0001978,2]
[359822074,1746359458936,-498.45,0.0001978,2]
[359822076,1746359458945,-282.33963342,0.0001978,2]
[359822078,1746359458955,-450.0,0.0001978,2]
[359822080,1746359458965,-450.0,0.0001978,2]
[359822082,1746359458974,-450.0,0.0001978,2]
[359822084,1746359458983,-176.66136161,0.0001978,2]
[359822086,1746359458994,-450.0,0.0001978,2]
[359822088,1746359459003,-450.0,0.0001978,2]
[359822090,1746359459013,-450.0,0.0001978,2]
[359822092,1746359459023,-180.8,0.0001978,2]
[359822094,1746359459032,-661.6,0.0001978,2]
[359822096,1746359459042,-2167.82,0.0001978,2]
[359822098,1746359459051,-304.46723512,0.0001978,2]
[359822101,1746359459061,-450.0,0.0001978,2]
[359822103,1746359459071,-450.0,0.0001978,2]
[359822105,1746359459080,-465.1676362,0.0001978,2]
[359822107,1746359459090,-494.48,0.0001978,2]
[359822109,1746359459099,-450.0,0.0001978,2]
[359822111,1746359459108,-52939.37,0.0001978,2]
[359822113,1746359459117,-450.0,0.0001978,2]
[359822115,1746359459127,-456.96178545,0.0001978,2]
[359822117,1746359459136,-12500.0,0.00019786,2]
[359822119,1746359459146,-2731.7568,0.0001979,2]
[359822121,1746359459155,-154.36871839,0.00019794,2]
[359822123,1746359459164,-12500.0,0.00019794,2]
[359822125,1746359459174,-1004.8585291,0.00019799,2]
[359822127,1746359459183,-1000.0,0.000198,2]
[359822129,1746359459192,-12500.0,0.00019803,2]
[359822131,1746359459202,-500.0,0.00019807,2]
[359822133,1746359459212,-500.0,0.00019807,2]
[359822135,1746359459221,-1806.5,0.00019807,2]
[359822137,1746359459230,-450.0,0.00019808,2]
[359822139,1746359459240,-450.0,0.00019808,2]
[359822141,1746359459249,-450.0,0.00019808,2]
[359822143,1746359459258,-450.0,0.00019808,2]
[359822145,1746359459268,-450.0,0.00019808,2]
[359822147,1746359459277,-450.0,0.00019808,2]
[359822149,1746359459287,-450.0,0.00019808,2]
[359822151,1746359459296,-450.0,0.00019808,2]
[359822153,1746359459306,-450.0,0.00019808,2]
[359822155,1746359459315,-450.0,0.00019808,2]
[359822157,1746359459324,-450.0,0.00019808,2]
[359822159,1746359459333,-450.0,0.00019808,2]
[359822165,1746359459386,-450.0,0.00019808,2]
[359822167,1746359459395,-884.01,0.00019808,2]
[359822169,1746359459404,-450.0,0.00019808,2]
[359822171,1746359459414,-450.0,0.00019808,2]
[359822173,1746359459424,-450.0,0.00019808,2]
[359822175,1746359459433,-450.0,0.00019808,2]
[359822177,1746359459443,-450.0,0.00019808,2]
[359822179,1746359459452,-450.0,0.00019808,2]
[359822181,1746359459462,-450.0,0.00019808,2]
[359822183,1746359459472,-450.0,0.00019808,2]
[359822185,1746359459483,-450.0,0.00019808,2]
[359822187,1746359459493,-450.0,0.00019808,2]
[359822189,1746359459502,-450.0,0.00019808,2]
[359822191,1746359459511,-450.0,0.00019808,2]
[359822193,1746359459521,-564.14,0.00019808,2]
[359822195,1746359459529,-450.0,0.00019808,2]
[359822197,1746359459538,-450.0,0.00019808,2]
[359822199,1746359459547,-215.91342741,0.00019808,2]
[359822201,1746359459557,-450.0,0.00019808,2]
[359822203,1746359459566,-450.0,0.00019808,2]
[359822205,1746359459577,-450.0,0.00019808,2]
[359822207,1746359459588,-450.0,0.00019808,2]
[359822209,1746359459597,-450.0,0.00019808,2]
[359822211,1746359459606,-450.0,0.00019808,2]
[359822213,1746359459615,-450.0,0.00019808,2]
[359822215,1746359459625,-450.0,0.00019808,2]
[359822217,1746359459634,-466.47,0.00019808,2]
[359822219,1746359459643,-450.0,0.00019808,2]
[359822221,1746359459652,-450.0,0.00019808,2]
[359822223,1746359459661,-450.0,0.00019808,2]
[359822225,1746359459671,-450.0,0.00019808,2]
[359822227,1746359459680,-450.0,0.00019808,2]
[359822229,1746359459689,-405.23917334,0.00019808,2]
[359822231,1746359459698,-450.0,0.00019808,2]
[359822233,1746359459708,-450.0,0.00019808,2]
[359822235,1746359459718,-450.0,0.00019808,2]
[359822237,1746359459727,-450.0,0.00019808,2]
[359822239,1746359459737,-521.58,0.00019808,2]
[359822241,1746359459747,-450.0,0.00019808,2]
[359822243,1746359459756,-450.0,0.00019808,2]
[359822245,1746359459766,-485.4,0.00019808,2]
[359822247,1746359459775,-657.67,0.00019808,2]
[359822249,1746359459785,-450.0,0.00019808,2]
[359822251,1746359459794,-498.91,0.00019808,2]
[359822253,1746359459804,-450.0,0.00019808,2]
[359822255,1746359459813,-450.0,0.00019808,2]
[359822257,1746359459823,-450.0,0.00019808,2]
[359822259,1746359459833,-587.24,0.00019808,2]
[359822261,1746359459842,-450.0,0.00019808,2]
[359822263,1746359459852,-542.57,0.00019808,2]
[359822265,1746359459861,-301.8710102,0.00019808,2]
[359822266,1746359459870,-450.0,0.00019808,2]
[359822267,1746359459880,-450.0,0.00019808,2]
[359822268,1746359459889,-450.0,0.00019808,2]
[359822269,1746359459899,-450.0,0.00019808,2]
[359822270,1746359459908,-450.0,0.00019808,2]
[359822271,1746359459918,-450.0,0.00019808,2]
[359822272,1746359459927,-450.0,0.00019808,2]
[359822273,1746359459937,-450.0,0.00019808,2]
[359822274,1746359459946,-450.0,0.00019808,2]
[359822276,1746359459956,-450.0,0.00019808,2]
[359822278,1746359459965,-450.0,0.00019808,2]
[359822280,1746359459975,-450.0,0.00019808,2]
[359822281,1746359459985,-450.0,0.00019808,2]
[359822283,1746359459995,-450.0,0.00019808,2]
[359822286,1746359460005,-450.0,0.00019808,2]
[359822287,1746359460015,-450.0,0.00019808,2]
[359822289,1746359460025,-450.0,0.00019808,2]
[359822291,1746359460034,-450.0,0.00019808,2]
[359822293,1746359460045,-450.0,0.00019808,2]
[359822296,1746359460056,-458.15660554,0.00019808,2]
[359822297,1746359460066,-487.9,0.00019808,2]
[359822299,1746359460076,-450.0,0.00019808,2]
[359822301,1746359460085,-450.0,0.00019808,2]
[359822303,1746359460095,-450.0,0.00019808,2]
[359822305,1746359460104,-450.0,0.00019808,2]
[359822307,1746359460113,-450.0,0.00019808,2]
[359822309,1746359460123,-1239.1,0.00019808,2]
[359822311,1746359460132,-450.0,0.00019808,2]
[359822313,1746359460142,-624.17,0.00019808,2]
[359822315,1746359460151,-795.62,0.00019808,2]
[359822317,1746359460161,-566.05754888,0.00019808,2]
[359822319,1746359460170,-1221.77,0.00019808,2]
[359822321,1746359460179,-450.0,0.00019808,2]
[359822323,1746359460188,-252.23254798,0.00019808,2]
[359822325,1746359460197,-450.0,0.00019808,2]
[359822327,1746359460206,-450.0,0.00019808,2]
[359822329,1746359460215,-450.0,0.00019808,2]
[359822331,1746359460224,-323.11,0.00019808,2]
[359822333,1746359460233,-450.0,0.00019808,2]
[359822335,1746359460243,-450.0,0.00019808,2]
[359822337,1746359460252,-450.0,0.00019808,2]
[359822339,1746359460261,-450.0,0.00019808,2]
[359822341,1746359460270,-412.46,0.00019808,2]
[359822342,1746359460279,-580.75,0.00019808,2]
[359822344,1746359460288,-3138.38,0.00019808,2]
[359822346,1746359460298,-222.71560384,0.00019808,2]
[359822348,1746359460308,-450.0,0.00019808,2]
[359822351,1746359460317,-460.09,0.00019808,2]
[359822353,1746359460327,-450.0,0.00019808,2]
[359822355,1746359460336,-450.0,0.00019808,2]
[359822357,1746359460345,-450.0,0.00019808,2]
[359822359,1746359460354,-450.0,0.00019808,2]
[359822361,1746359460364,-450.0,0.00019808,2]
[359822362,1746359460376,-450.0,0.00019808,2]
[359822364,1746359460385,-641.964982,0.00019808,2]
[359822366,1746359460395,-450.0,0.00019808,2]
[359822368,1746359460404,-1070.11,0.00019808,2]
[359822370,1746359460415,-450.0,0.00019808,2]
[359822372,1746359460424,-450.0,0.00019808,2]
[359822374,1746359460434,-222.91,0.00019808,2]
[359822376,1746359460443,-450.0,0.00019808,2]
[359822378,1746359460454,-450.0,0.00019808,2]
[359822380,1746359460464,-450.0,0.00019808,2]
[359822382,1746359460473,-545.14,0.00019808,2]
[359822384,1746359460482,-450.0,0.00019808,2]
[359822386,1746359460491,-532.9,0.00019808,2]
[359822388,1746359460500,-450.0,0.00019808,2]
[359822390,1746359460510,-304.26472933,0.00019808,2]
[359822392,1746359460519,-450.0,0.00019808,2]
[359822394,1746359460528,-1073.06,0.00019808,2]
[359822396,1746359460538,-527.46,0.00019808,2]
[359822398,1746359460547,-830.705195,0.00019808,2]
[359822400,1746359460557,-450.0,0.00019808,2]
[359822402,1746359460567,-450.0,0.00019808,2]
[359822405,1746359460576,-553.87125161,0.00019808,2]
[359822406,1746359460585,-450.0,0.00019808,2]
[359822408,1746359460594,-450.0,0.00019808,2]
[359822410,1746359460602,-333.741161,0.00019808,2]
[359822412,1746359460612,-450.0,0.00019808,2]
[359822414,1746359460622,-857.72,0.00019808,2]
[359822416,1746359460631,-450.0,0.00019808,2]
[359822418,1746359460640,-450.0,0.00019808,2]
[359822420,1746359460650,-532.1,0.00019808,2]
[359822422,1746359460660,-2941.44,0.00019808,2]
[359822424,1746359460668,-450.0,0.00019808,2]
[359822426,1746359460678,-450.0,0.00019808,2]
[359822428,1746359460687,-450.0,0.00019808,2]
[359822430,1746359460696,-1162.75,0.00019808,2]
[359822432,1746359460705,-450.0,0.00019808,2]
[359822434,1746359460715,-450.0,0.00019808,2]
[359822436,1746359460724,-450.0,0.00019808,2]
[359822438,1746359460733,-562.76,0.00019808,2]
[359822440,1746359460742,-450.0,0.00019808,2]
[359822442,1746359460753,-1159.98,0.00019808,2]
[359822444,1746359460763,-450.0,0.00019808,2]
[359822446,1746359460772,-450.0,0.00019808,2]
[359822448,1746359460781,-450.0,0.00019808,2]
[359822450,1746359460789,-450.0,0.00019808,2]
[359822452,1746359460798,-450.0,0.00019808,2]
[359822454,1746359460807,-534.65634387,0.00019808,2]
[359822456,1746359460817,-548.68,0.00019808,2]
[359822458,1746359460826,-450.0,0.00019808,2]
[359822460,1746359460835,-476.7468002,0.00019808,2]
[359822462,1746359460844,-450.0,0.00019808,2]
[359822464,1746359460854,-450.0,0.00019808,2]
[359822466,1746359460863,-450.0,0.00019808,2]
[359822468,1746359460872,-450.0,0.00019808,2]
[359822470,1746359460882,-765.13,0.00019808,2]
[359822472,1746359460892,-450.0,0.00019808,2]
[359822474,1746359460903,-463.89065437,0.00019808,2]
[359822476,1746359460912,-209.45,0.00019808,2]
[359822478,1746359460922,-450.0,0.00019808,2]
[359822480,1746359460931,-450.0,0.00019808,2]
[359822482,1746359460941,-450.0,0.00019808,2]
[359822484,1746359460950,-450.0,0.00019808,2]
[359822485,1746359460959,-533.18,0.00019808,2]
[359822487,1746359460969,-450.0,0.00019808,2]
[359822489,1746359460978,-212.38074,0.00019808,2]
[359822491,1746359460987,-450.0,0.00019808,2]
[359822493,1746359460997,-450.0,0.00019808,2]
[359822495,1746359461007,-450.0,0.00019808,2]
[359822498,1746359461017,-450.0,0.00019808,2]
[359822500,1746359461026,-550.85,0.00019808,2]
[359822502,1746359461036,-531.8,0.00019808,2]
[359822504,1746359461045,-450.0,0.00019808,2]
[359822506,1746359461054,-450.0,0.00019808,2]
[359822508,1746359461064,-450.0,0.00019808,2]
[359822510,1746359461074,-3050.62,0.00019808,2]
[359822512,1746359461083,-450.0,0.00019808,2]
[359822514,1746359461092,-450.0,0.00019808,2]
[359822516,1746359461101,-450.0,0.00019808,2]
[359822518,1746359461111,-450.0,0.00019808,2]
[359822520,1746359461120,-683.7,0.00019808,2]
[359822522,1746359461130,-450.0,0.00019808,2]
[359822524,1746359461139,-450.0,0.00019808,2]
[359822526,1746359461148,-603.46,0.00019808,2]
[359822528,1746359461158,-450.0,0.00019808,2]
[359822530,1746359461167,-450.0,0.00019808,2]
[359822532,1746359461176,-450.0,0.00019808,2]
[359822534,1746359461186,-450.0,0.00019808,2]
[359822536,1746359461195,-2117.72,0.00019808,2]
[359822538,1746359461204,-450.0,0.00019808,2]
[359822540,1746359461213,-167.18,0.00019808,2]
[359822541,1746359461222,-450.0,0.00019808,2]
[359822543,1746359461232,-450.0,0.00019808,2]
[359822545,1746359461241,-625.72,0.00019808,2]
[359822547,1746359461250,-450.0,0.00019808,2]
[359822549,1746359461259,-1742.76,0.00019808,2]
[359822551,1746359461269,-530.32,0.00019808,2]
[359822553,1746359461278,-450.0,0.00019808,2]
[359822555,1746359461288,-3548.84,0.00019808,2]
[359822557,1746359461297,-450.0,0.00019808,2]
[359822559,1746359461306,-450.0,0.00019808,2]
[359822561,1746359461316,-450.0,0.00019808,2]
[359822563,1746359461325,-450.0,0.00019808,2]
[359822565,1746359461335,-450.0,0.00019808,2]
[359822567,1746359461345,-450.0,0.00019808,2]
[359822569,1746359461354,-355.1,0.00019808,2]
[359822571,1746359461364,-573.03,0.00019808,2]